[Event "Titled Tuesday Blitz September 20 Late 2022"]
[White "Panarin, Mikhail"]
[Black "Fernandez De La Vara, Arnaldo"]
[WhiteFideId "4153251"]
[BlackFideId "3518388"]
[WhiteElo "2863"]
[BlackElo "2647"]
[Result "0-1"]
[Round "11"]
[TimeControl "180+1"]
[Date "2022.09.20"]
[WhiteClock "0:00:38"]
[BlackClock "0:00:18"]

1. e4 {[%clk 0:03:00]}  c5 {[%clk 0:03:00]} 2. Nf3 {[%clk 0:03:00]}  e6 {[%clk 0:03:01]} 3. d4 {[%clk 0:03:01]}  cxd4 {[%clk 0:03:01]} 4. Nxd4 {[%clk 0:03:02]}  a6 {[%clk 0:03:02]} 5. Nc3 {[%clk 0:03:02]}  Qc7 {[%clk 0:03:02]} 6. Bd3 {[%clk 0:03:02]}  Nf6 {[%clk 0:03:02]} 7. Qe2 {[%clk 0:03:03]}  d6 {[%clk 0:03:02]} 8. O-O {[%clk 0:03:03]}  Nbd7 {[%clk 0:03:01]} 9. Bd2 {[%clk 0:03:02]}  b5 {[%clk 0:03:01]} 10. a4 {[%clk 0:03:02]}  b4 {[%clk 0:03:01]} 11. Na2 {[%clk 0:03:02]}  d5 {[%clk 0:02:46]} 12. Bxb4 {[%clk 0:02:58]}  dxe4 {[%clk 0:02:19]} 13. Bxe4 {[%clk 0:02:53]}  Nxe4 {[%clk 0:02:19]} 14. Qxe4 {[%clk 0:02:53]}  Bb7 {[%clk 0:02:19]} 15. Nxe6 {[%clk 0:02:43]}  fxe6 {[%clk 0:02:10]} 16. Qxe6+ {[%clk 0:02:44]}  Kd8 {[%clk 0:02:10]} 17. Rad1 {[%clk 0:02:06]}  a5 {[%clk 0:02:09]} 18. Bxf8 {[%clk 0:01:56]}  Rxf8 {[%clk 0:02:09]} 19. Rfe1 {[%clk 0:01:56]}  Qc6 {[%clk 0:02:09]} 20. Qh3 {[%clk 0:01:33]}  Kc7 {[%clk 0:01:47]} 21. Nc3 {[%clk 0:01:31]}  Rae8 {[%clk 0:01:42]} 22. Nb5+ {[%clk 0:01:24]}  Kb6 {[%clk 0:01:22]} 23. Re3 {[%clk 0:01:24]}  Qxc2 {[%clk 0:00:45]} 24. Re6+ {[%clk 0:01:04]}  Rxe6 {[%clk 0:00:30]} 25. Qxe6+ {[%clk 0:01:03]}  Bc6 {[%clk 0:00:30]} 26. Qe3+ {[%clk 0:00:48]}  Qc5 {[%clk 0:00:30]} 27. Nd4 {[%clk 0:00:45]}  Bxa4 {[%clk 0:00:25]} 28. Rc1 {[%clk 0:00:44]}  Re8 {[%clk 0:00:19]} 29. Qxe8 {[%clk 0:00:38]}  Qxc1+ {[%clk 0:00:18]} 0-1


[Site "https://www.chess.com"]

[Event "Titled Tuesday Blitz September 20 Late 2022"]
[White "Pham, Khoi"]
[Black "Rustemov, Alexander"]
[WhiteFideId "1054988"]
[BlackFideId "4119002"]
[WhiteElo "2428"]
[BlackElo "2828"]
[Result "1-0"]
[Round "11"]
[TimeControl "180+1"]
[Date "2022.09.20"]
[WhiteClock "0:00:45"]
[BlackClock "0:00:12"]

1. e4 {[%clk 0:03:00]}  e6 {[%clk 0:02:59]} 2. d4 {[%clk 0:03:00]}  d5 {[%clk 0:03:00]} 3. Bd3 {[%clk 0:03:00]}  dxe4 {[%clk 0:03:00]} 4. Bxe4 {[%clk 0:03:01]}  Nf6 {[%clk 0:03:00]} 5. Bf3 {[%clk 0:03:02]}  Be7 {[%clk 0:03:00]} 6. Ne2 {[%clk 0:03:02]}  O-O {[%clk 0:03:01]} 7. O-O {[%clk 0:03:02]}  Nbd7 {[%clk 0:03:01]} 8. Bf4 {[%clk 0:02:56]}  Bd6 {[%clk 0:03:00]} 9. Bxd6 {[%clk 0:02:54]}  cxd6 {[%clk 0:03:00]} 10. Nbc3 {[%clk 0:02:51]}  a6 {[%clk 0:02:53]} 11. Ng3 {[%clk 0:02:49]}  Qc7 {[%clk 0:02:50]} 12. Re1 {[%clk 0:02:49]}  Rb8 {[%clk 0:02:47]} 13. Qd2 {[%clk 0:02:49]}  b5 {[%clk 0:02:47]} 14. Rad1 {[%clk 0:02:45]}  Bb7 {[%clk 0:02:41]} 15. Bxb7 {[%clk 0:02:44]}  Rxb7 {[%clk 0:02:36]} 16. Nce4 {[%clk 0:02:44]}  Rc8 {[%clk 0:02:31]} 17. Nxf6+ {[%clk 0:02:40]}  Nxf6 {[%clk 0:02:31]} 18. Re2 {[%clk 0:02:39]}  b4 {[%clk 0:02:29]} 19. Qf4 {[%clk 0:02:35]}  Rb6 {[%clk 0:02:09]} 20. h4 {[%clk 0:02:30]}  Rc6 {[%clk 0:02:06]} 21. Rdd2 {[%clk 0:02:21]}  a5 {[%clk 0:02:01]} 22. h5 {[%clk 0:02:20]}  h6 {[%clk 0:02:00]} 23. Qf3 {[%clk 0:02:13]}  d5 {[%clk 0:01:57]} 24. a4 {[%clk 0:02:08]}  Rc4 {[%clk 0:01:45]} 25. Qe3 {[%clk 0:02:02]}  Qd7 {[%clk 0:01:40]} 26. b3 {[%clk 0:01:56]}  Rc3 {[%clk 0:01:40]} 27. Qf4 {[%clk 0:01:55]}  Qc7 {[%clk 0:01:36]} 28. Qxc7 {[%clk 0:01:54]}  R8xc7 {[%clk 0:01:35]} 29. f3 {[%clk 0:01:54]}  Kf8 {[%clk 0:01:24]} 30. Kf2 {[%clk 0:01:53]}  Ne8 {[%clk 0:01:22]} 31. Nf1 {[%clk 0:01:52]}  Nd6 {[%clk 0:01:21]} 32. Ne3 {[%clk 0:01:52]}  R3c6 {[%clk 0:01:02]} 33. Nd1 {[%clk 0:01:49]}  Nf5 {[%clk 0:00:59]} 34. g4 {[%clk 0:01:49]}  Ne7 {[%clk 0:00:58]} 35. Nb2 {[%clk 0:01:48]}  Rc3 {[%clk 0:00:55]} 36. Nd3 {[%clk 0:01:47]}  Nc6 {[%clk 0:00:55]} 37. Nb2 {[%clk 0:01:42]}  Ke7 {[%clk 0:00:53]} 38. Nd1 {[%clk 0:01:38]}  Kd6 {[%clk 0:00:53]} 39. Nxc3 {[%clk 0:01:35]}  bxc3 {[%clk 0:00:53]} 40. Rd1 {[%clk 0:01:32]}  f6 {[%clk 0:00:51]} 41. f4 {[%clk 0:01:26]}  Nb4 {[%clk 0:00:44]} 42. Rde1 {[%clk 0:01:24]}  Re7 {[%clk 0:00:43]} 43. Kg3 {[%clk 0:01:20]}  Nc6 {[%clk 0:00:42]} 44. Rd1 {[%clk 0:01:17]}  Nb4 {[%clk 0:00:36]} 45. g5 {[%clk 0:01:13]}  f5 {[%clk 0:00:33]} 46. Kf3 {[%clk 0:01:03]}  Re8 {[%clk 0:00:33]} 47. Rg1 {[%clk 0:01:00]}  Re7 {[%clk 0:00:28]} 48. gxh6 {[%clk 0:00:59]}  gxh6 {[%clk 0:00:28]} 49. Rg6 {[%clk 0:00:59]}  Nc6 {[%clk 0:00:27]} 50. Ke3 {[%clk 0:00:58]}  Rh7 {[%clk 0:00:26]} 51. Kd3 {[%clk 0:00:56]}  Nd8 {[%clk 0:00:23]} 52. Kxc3 {[%clk 0:00:55]}  Kd7 {[%clk 0:00:20]} 53. Kd3 {[%clk 0:00:53]}  Re7 {[%clk 0:00:17]} 54. Rxh6 {[%clk 0:00:51]}  Nb7 {[%clk 0:00:17]} 55. Rg6 {[%clk 0:00:50]}  Nd6 {[%clk 0:00:17]} 56. h6 {[%clk 0:00:50]}  Ne8 {[%clk 0:00:15]} 57. Rgxe6 {[%clk 0:00:46]}  Rxe6 {[%clk 0:00:13]} 58. Rxe6 {[%clk 0:00:47]}  Kxe6 {[%clk 0:00:11]} 59. h7 {[%clk 0:00:46]}  Nd6 {[%clk 0:00:10]} 60. h8=Q {[%clk 0:00:46]}  Nc4 {[%clk 0:00:11]} 61. bxc4 {[%clk 0:00:45]}  dxc4+ {[%clk 0:00:11]} 62. Kxc4 {[%clk 0:00:45]}  Kd6 {[%clk 0:00:11]} 63. Qe5+ {[%clk 0:00:45]}  Kc6 {[%clk 0:00:12]} 64. Qxf5 {[%clk 0:00:45]}  Kc7 {[%clk 0:00:11]} 65. Qe6 {[%clk 0:00:44]}  Kb7 {[%clk 0:00:11]} 66. Qf7+ {[%clk 0:00:45]}  Kb8 {[%clk 0:00:11]} 67. Kc5 {[%clk 0:00:44]}  Kc8 {[%clk 0:00:12]} 68. Kc6 {[%clk 0:00:45]}  Kb8 {[%clk 0:00:12]} 69. Qb7# {[%clk 0:00:45]} 1-0


[Site "https://www.chess.com"]

[Event "Titled Tuesday Blitz September 20 Late 2022"]
[White "Shandrygin, Nikita"]
[Black "Baskakov, Egor"]
[WhiteFideId "24198668"]
[BlackFideId "24197866"]
[WhiteElo "2323"]
[BlackElo "2211"]
[Result "0-1"]
[Round "11"]
[TimeControl "180+1"]
[Date "2022.09.20"]
[WhiteClock "0:00:06"]
[BlackClock "0:00:22"]

1. e4 {[%clk 0:03:00]}  c5 {[%clk 0:02:59]} 2. Nf3 {[%clk 0:02:59]}  Nf6 {[%clk 0:02:59]} 3. Nc3 {[%clk 0:02:57]}  d5 {[%clk 0:02:59]} 4. e5 {[%clk 0:02:48]}  Ne4 {[%clk 0:02:59]} 5. Bd3 {[%clk 0:02:35]}  Nxc3 {[%clk 0:02:56]} 6. dxc3 {[%clk 0:02:36]}  Nc6 {[%clk 0:02:56]} 7. h3 {[%clk 0:02:34]}  g6 {[%clk 0:02:55]} 8. O-O {[%clk 0:02:32]}  Bg7 {[%clk 0:02:54]} 9. Re1 {[%clk 0:02:33]}  Qc7 {[%clk 0:02:49]} 10. Bf4 {[%clk 0:02:32]}  O-O {[%clk 0:02:46]} 11. Qd2 {[%clk 0:02:31]}  e6 {[%clk 0:02:38]} 12. Bh6 {[%clk 0:02:30]}  Qe7 {[%clk 0:02:34]} 13. h4 {[%clk 0:02:25]}  f6 {[%clk 0:02:22]} 14. Bxg7 {[%clk 0:02:19]}  Qxg7 {[%clk 0:02:23]} 15. exf6 {[%clk 0:02:20]}  Qxf6 {[%clk 0:02:24]} 16. Bb5 {[%clk 0:02:20]}  Ne7 {[%clk 0:02:18]} 17. Qg5 {[%clk 0:02:11]}  c4 {[%clk 0:02:12]} 18. Qxf6 {[%clk 0:01:52]}  Rxf6 {[%clk 0:02:13]} 19. Ne5 {[%clk 0:01:53]}  Rf5 {[%clk 0:01:52]} 20. Bxc4 {[%clk 0:01:27]}  dxc4 {[%clk 0:01:51]} 21. Nxc4 {[%clk 0:01:28]}  Bd7 {[%clk 0:01:45]} 22. Nd6 {[%clk 0:01:26]}  Rd5 {[%clk 0:01:43]} 23. Ne4 {[%clk 0:01:26]}  Kg7 {[%clk 0:01:41]} 24. c4 {[%clk 0:01:26]}  Re5 {[%clk 0:01:37]} 25. f4 {[%clk 0:01:23]}  Rh5 {[%clk 0:01:10]} 26. g3 {[%clk 0:01:17]}  h6 {[%clk 0:01:05]} 27. Rad1 {[%clk 0:01:11]}  Bc6 {[%clk 0:01:05]} 28. Nf2 {[%clk 0:00:54]}  Kf7 {[%clk 0:00:54]} 29. Nd3 {[%clk 0:00:51]}  g5 {[%clk 0:00:52]} 30. Ne5+ {[%clk 0:00:45]}  Kf6 {[%clk 0:00:52]} 31. Rd3 {[%clk 0:00:33]}  gxh4 {[%clk 0:00:49]} 32. g4 {[%clk 0:00:33]}  Rxe5 {[%clk 0:00:48]} 33. Rxe5 {[%clk 0:00:32]}  Rg8 {[%clk 0:00:48]} 34. g5+ {[%clk 0:00:22]}  hxg5 {[%clk 0:00:47]} 35. Rxg5 {[%clk 0:00:22]}  Rxg5+ {[%clk 0:00:47]} 36. fxg5+ {[%clk 0:00:23]}  Kxg5 {[%clk 0:00:48]} 37. Re3 {[%clk 0:00:24]}  Kf5 {[%clk 0:00:40]} 38. b4 {[%clk 0:00:21]}  e5 {[%clk 0:00:39]} 39. b5 {[%clk 0:00:21]}  Be4 {[%clk 0:00:39]} 40. c3 {[%clk 0:00:17]}  Kf4 {[%clk 0:00:39]} 41. Rh3 {[%clk 0:00:17]}  Nf5 {[%clk 0:00:39]} 42. c5 {[%clk 0:00:16]}  Kg4 {[%clk 0:00:39]} 43. Rh2 {[%clk 0:00:16]}  h3 {[%clk 0:00:39]} 44. a4 {[%clk 0:00:09]}  Nh4 {[%clk 0:00:35]} 45. Re2 {[%clk 0:00:07]}  Nf3+ {[%clk 0:00:30]} 46. Kf2 {[%clk 0:00:06]}  h2 {[%clk 0:00:22]} 47. Rxe4+ {[%clk 0:00:06]}  Kf5 {[%clk 0:00:23]} 48. Rh4 {[%clk 0:00:06]}  Nxh4 {[%clk 0:00:23]} 49. Kg3 {[%clk 0:00:06]}  h1=Q {[%clk 0:00:22]} 0-1


[Site "https://www.chess.com"]

[Event "Titled Tuesday Blitz September 20 Late 2022"]
[White "Suarez Garcia, Carlos"]
[Black "Mendez Fortes, Eduardo Jesus"]
[WhiteFideId "22230858"]
[BlackFideId "3502376"]
[WhiteElo "2491"]
[BlackElo "2307"]
[Result "1-0"]
[Round "11"]
[TimeControl "180+1"]
[Date "2022.09.20"]
[WhiteClock "0:00:44"]
[BlackClock "0:00:08"]

1. b3 {[%clk 0:03:00]}  d5 {[%clk 0:02:52]} 2. Bb2 {[%clk 0:02:56]}  Nf6 {[%clk 0:02:52]} 3. e3 {[%clk 0:02:55]}  e6 {[%clk 0:02:51]} 4. c4 {[%clk 0:02:55]}  b6 {[%clk 0:02:50]} 5. Nf3 {[%clk 0:02:53]}  Bb7 {[%clk 0:02:48]} 6. Be2 {[%clk 0:02:54]}  Bd6 {[%clk 0:02:45]} 7. O-O {[%clk 0:02:53]}  O-O {[%clk 0:02:45]} 8. d3 {[%clk 0:02:52]}  c5 {[%clk 0:02:44]} 9. Nbd2 {[%clk 0:02:52]}  Nc6 {[%clk 0:02:43]} 10. a3 {[%clk 0:02:53]}  Re8 {[%clk 0:02:39]} 11. Qc2 {[%clk 0:02:53]}  e5 {[%clk 0:02:36]} 12. cxd5 {[%clk 0:02:52]}  Nxd5 {[%clk 0:02:37]} 13. Rac1 {[%clk 0:02:50]}  Bf8 {[%clk 0:02:31]} 14. Qb1 {[%clk 0:02:50]}  Rc8 {[%clk 0:02:16]} 15. Rfd1 {[%clk 0:02:47]}  Qf6 {[%clk 0:02:04]} 16. Qa1 {[%clk 0:02:45]}  g6 {[%clk 0:01:52]} 17. Nc4 {[%clk 0:02:44]}  Bg7 {[%clk 0:01:43]} 18. Bf1 {[%clk 0:02:35]}  Qe6 {[%clk 0:01:36]} 19. Ng5 {[%clk 0:02:34]}  Qd7 {[%clk 0:01:27]} 20. Ne4 {[%clk 0:02:34]}  Re6 {[%clk 0:01:21]} 21. g3 {[%clk 0:02:26]}  f5 {[%clk 0:01:20]} 22. Ng5 {[%clk 0:02:25]}  Ree8 {[%clk 0:01:18]} 23. Bg2 {[%clk 0:02:25]}  h6 {[%clk 0:01:17]} 24. Nf3 {[%clk 0:02:25]}  Qe6 {[%clk 0:01:09]} 25. Re1 {[%clk 0:02:22]}  Rcd8 {[%clk 0:01:08]} 26. e4 {[%clk 0:02:18]}  fxe4 {[%clk 0:01:06]} 27. Rxe4 {[%clk 0:02:13]}  Nc7 {[%clk 0:01:03]} 28. Re3 {[%clk 0:02:07]}  Nd4 {[%clk 0:00:54]} 29. Bxd4 {[%clk 0:02:04]}  Bxf3 {[%clk 0:00:41]} 30. Bxe5 {[%clk 0:02:01]}  Nd5 {[%clk 0:00:33]} 31. Rxf3 {[%clk 0:01:46]}  Bxe5 {[%clk 0:00:31]} 32. Nxe5 {[%clk 0:01:45]}  Qxe5 {[%clk 0:00:32]} 33. Qxe5 {[%clk 0:01:38]}  Rxe5 {[%clk 0:00:33]} 34. Bf1 {[%clk 0:01:38]}  Kg7 {[%clk 0:00:29]} 35. d4 {[%clk 0:01:29]}  cxd4 {[%clk 0:00:27]} 36. Rd3 {[%clk 0:01:29]}  Ne7 {[%clk 0:00:23]} 37. Rc7 {[%clk 0:01:26]}  Rc8 {[%clk 0:00:20]} 38. Rxc8 {[%clk 0:01:22]}  Nxc8 {[%clk 0:00:19]} 39. Rxd4 {[%clk 0:01:22]}  Kf6 {[%clk 0:00:18]} 40. Ba6 {[%clk 0:01:18]}  Ne7 {[%clk 0:00:17]} 41. Rd6+ {[%clk 0:01:15]}  Re6 {[%clk 0:00:18]} 42. Rd7 {[%clk 0:01:15]}  Nc6 {[%clk 0:00:17]} 43. Bc4 {[%clk 0:01:15]}  Re1+ {[%clk 0:00:15]} 44. Kg2 {[%clk 0:01:16]}  Ne5 {[%clk 0:00:15]} 45. Rxa7 {[%clk 0:01:12]}  Ra1 {[%clk 0:00:15]} 46. Ra6 {[%clk 0:01:09]}  Nd7 {[%clk 0:00:14]} 47. Bb5 {[%clk 0:01:08]}  Nc5 {[%clk 0:00:14]} 48. Rxb6+ {[%clk 0:01:09]}  Kg7 {[%clk 0:00:13]} 49. b4 {[%clk 0:01:07]}  Ne4 {[%clk 0:00:13]} 50. Bd3 {[%clk 0:01:07]}  Nf6 {[%clk 0:00:12]} 51. Ra6 {[%clk 0:01:04]}  Ra2 {[%clk 0:00:11]} 52. h3 {[%clk 0:01:03]}  Kf7 {[%clk 0:00:11]} 53. b5 {[%clk 0:01:02]}  Rb2 {[%clk 0:00:10]} 54. a4 {[%clk 0:01:03]}  Ke7 {[%clk 0:00:09]} 55. a5 {[%clk 0:01:01]}  Nd5 {[%clk 0:00:09]} 56. Rxg6 {[%clk 0:00:58]}  Ne3+ {[%clk 0:00:08]} 57. Kf3 {[%clk 0:00:58]}  Nd1 {[%clk 0:00:09]} 58. Be2 {[%clk 0:00:54]}  Rb3+ {[%clk 0:00:09]} 59. Kg2 {[%clk 0:00:51]}  Nc3 {[%clk 0:00:09]} 60. Bf1 {[%clk 0:00:51]}  Rb2 {[%clk 0:00:09]} 61. a6 {[%clk 0:00:43]}  Ne4 {[%clk 0:00:09]} 62. a7 {[%clk 0:00:43]}  Rxf2+ {[%clk 0:00:08]} 63. Kg1 {[%clk 0:00:43]}  Ra2 {[%clk 0:00:08]} 64. Ra6 {[%clk 0:00:44]} 1-0


[Site "https://www.chess.com"]

[Event "Titled Tuesday Blitz September 20 Late 2022"]
[White "Suarez Uriel, Adrian"]
[Black "Preotu, Razvan"]
[WhiteFideId "22230874"]
[BlackFideId "2613280"]
[WhiteElo "2310"]
[BlackElo "2407"]
[Result "0-1"]
[Round "11"]
[TimeControl "180+1"]
[Date "2022.09.20"]
[WhiteClock "0:01:37"]
[BlackClock "0:00:40"]

1. e4 {[%clk 0:03:00]}  c5 {[%clk 0:02:58]} 2. Nf3 {[%clk 0:03:00]}  d6 {[%clk 0:02:58]} 3. Nc3 {[%clk 0:02:59]}  Nf6 {[%clk 0:02:58]} 4. e5 {[%clk 0:03:00]}  dxe5 {[%clk 0:02:58]} 5. Nxe5 {[%clk 0:03:01]}  a6 {[%clk 0:02:58]} 6. g3 {[%clk 0:03:01]}  Qd6 {[%clk 0:02:58]} 7. Qe2 {[%clk 0:03:01]}  Nc6 {[%clk 0:02:58]} 8. Nxc6 {[%clk 0:02:54]}  Qxc6 {[%clk 0:02:58]} 9. Rg1 {[%clk 0:02:54]}  Bg4 {[%clk 0:02:59]} 10. Bg2 {[%clk 0:02:54]}  Qxg2 {[%clk 0:02:59]} 11. Rxg2 {[%clk 0:02:53]}  Bxe2 {[%clk 0:03:00]} 12. Kxe2 {[%clk 0:02:53]}  g6 {[%clk 0:02:53]} 13. a4 {[%clk 0:02:46]}  b6 {[%clk 0:02:52]} 14. d3 {[%clk 0:02:35]}  Bg7 {[%clk 0:02:52]} 15. f3 {[%clk 0:02:35]}  e6 {[%clk 0:02:39]} 16. Be3 {[%clk 0:02:35]}  Nd5 {[%clk 0:02:27]} 17. Bd2 {[%clk 0:02:32]}  Nb4 {[%clk 0:02:25]} 18. Kd1 {[%clk 0:02:31]}  Nc6 {[%clk 0:02:18]} 19. Rb1 {[%clk 0:02:29]}  O-O-O {[%clk 0:02:15]} 20. Ne4 {[%clk 0:02:28]}  h6 {[%clk 0:02:02]} 21. g4 {[%clk 0:02:22]}  Nd4 {[%clk 0:01:58]} 22. Bc3 {[%clk 0:02:17]}  Be5 {[%clk 0:01:48]} 23. Bxd4 {[%clk 0:02:17]}  Rxd4 {[%clk 0:01:47]} 24. b3 {[%clk 0:02:18]}  f5 {[%clk 0:01:43]} 25. gxf5 {[%clk 0:02:16]}  exf5 {[%clk 0:01:40]} 26. Nd2 {[%clk 0:02:08]}  g5 {[%clk 0:01:39]} 27. Nc4 {[%clk 0:02:05]}  Bc7 {[%clk 0:01:39]} 28. b4 {[%clk 0:02:06]}  Rhd8 {[%clk 0:01:14]} 29. Ne3 {[%clk 0:02:05]}  Rf4 {[%clk 0:00:46]} 30. Rf2 {[%clk 0:02:01]}  c4 {[%clk 0:00:46]} 31. Ke2 {[%clk 0:01:53]}  Re8 {[%clk 0:00:45]} 32. Kd2 {[%clk 0:01:50]}  c3+ {[%clk 0:00:45]} 33. Ke2 {[%clk 0:01:49]}  Rh4 {[%clk 0:00:43]} 34. Rb3 {[%clk 0:01:39]}  f4 {[%clk 0:00:42]} 35. Rxc3 {[%clk 0:01:39]}  Rxe3+ {[%clk 0:00:42]} 36. Kd2 {[%clk 0:01:39]}  Kd7 {[%clk 0:00:41]} 37. Rc4 {[%clk 0:01:37]}  Rh3 {[%clk 0:00:40]} 0-1


[Site "https://www.chess.com"]

[Event "Titled Tuesday Blitz September 20 Late 2022"]
[White "Vasquez Schroeder, Rodrigo"]
[Black "Lewtak, Damian"]
[WhiteFideId "3400042"]
[BlackFideId "1141724"]
[WhiteElo "2834"]
[BlackElo "2663"]
[Result "1-0"]
[Round "11"]
[TimeControl "180+1"]
[Date "2022.09.20"]
[WhiteClock "0:00:18"]
[BlackClock "0:00:02"]

1. d4 {[%clk 0:03:00]}  d5 {[%clk 0:02:59]} 2. Nf3 {[%clk 0:02:55]}  Nf6 {[%clk 0:02:58]} 3. c4 {[%clk 0:02:55]}  e6 {[%clk 0:02:58]} 4. Nc3 {[%clk 0:02:55]}  Bb4 {[%clk 0:02:57]} 5. Qa4+ {[%clk 0:02:53]}  Nc6 {[%clk 0:02:57]} 6. e3 {[%clk 0:02:54]}  O-O {[%clk 0:02:53]} 7. Qc2 {[%clk 0:02:54]}  Bd6 {[%clk 0:02:39]} 8. a3 {[%clk 0:02:53]}  dxc4 {[%clk 0:02:39]} 9. Bxc4 {[%clk 0:02:52]}  e5 {[%clk 0:02:36]} 10. d5 {[%clk 0:02:44]}  Ne7 {[%clk 0:02:31]} 11. h3 {[%clk 0:02:42]}  c6 {[%clk 0:02:11]} 12. dxc6 {[%clk 0:02:41]}  Nxc6 {[%clk 0:02:11]} 13. O-O {[%clk 0:02:41]}  Qe7 {[%clk 0:02:08]} 14. Nd5 {[%clk 0:02:37]}  Nxd5 {[%clk 0:02:08]} 15. Bxd5 {[%clk 0:02:38]}  Be6 {[%clk 0:02:03]} 16. Bxe6 {[%clk 0:02:09]}  Qxe6 {[%clk 0:02:03]} 17. e4 {[%clk 0:02:09]}  Rac8 {[%clk 0:01:57]} 18. Qe2 {[%clk 0:02:09]}  Nd4 {[%clk 0:01:53]} 19. Nxd4 {[%clk 0:02:06]}  exd4 {[%clk 0:01:54]} 20. Qd3 {[%clk 0:01:52]}  Rfe8 {[%clk 0:01:44]} 21. Re1 {[%clk 0:01:52]}  f5 {[%clk 0:01:35]} 22. e5 {[%clk 0:01:45]}  Be7 {[%clk 0:01:13]} 23. Bd2 {[%clk 0:01:42]}  Rc6 {[%clk 0:01:02]} 24. Qxd4 {[%clk 0:01:26]}  Rd8 {[%clk 0:01:01]} 25. Qe3 {[%clk 0:01:23]}  Rc2 {[%clk 0:00:53]} 26. Bc3 {[%clk 0:01:21]}  b6 {[%clk 0:00:45]} 27. Re2 {[%clk 0:01:18]}  Bc5 {[%clk 0:00:42]} 28. Qf3 {[%clk 0:01:18]}  Rxe2 {[%clk 0:00:36]} 29. Qxe2 {[%clk 0:01:19]}  f4 {[%clk 0:00:37]} 30. Qe4 {[%clk 0:01:12]}  f3 {[%clk 0:00:31]} 31. Re1 {[%clk 0:01:01]}  fxg2 {[%clk 0:00:30]} 32. Kxg2 {[%clk 0:01:01]}  Rf8 {[%clk 0:00:28]} 33. f4 {[%clk 0:00:56]}  g5 {[%clk 0:00:28]} 34. Rf1 {[%clk 0:00:51]}  Rf5 {[%clk 0:00:19]} 35. Rf3 {[%clk 0:00:48]}  Qg6 {[%clk 0:00:14]} 36. Qd5+ {[%clk 0:00:41]}  Kg7 {[%clk 0:00:12]} 37. e6+ {[%clk 0:00:20]}  Kh6 {[%clk 0:00:10]} 38. Qe4 {[%clk 0:00:19]}  gxf4+ {[%clk 0:00:10]} 39. Kf1 {[%clk 0:00:20]}  Qg1+ {[%clk 0:00:08]} 40. Ke2 {[%clk 0:00:20]}  Qg2+ {[%clk 0:00:07]} 41. Kd3 {[%clk 0:00:20]}  Kg5 {[%clk 0:00:02]} 42. h4+ {[%clk 0:00:18]} 1-0


[Site "https://www.chess.com"]